Cogmind - Beta 15 @@@ ROGUE MODE // 2025.05.08 @ 14:56:32 Player: fran Result: Destroyed by H-61 Shepherd with Heavy Assault Cannon Performance ------------- Evolutions (3) 1500 Regions Visited (5) 1000 Robots Destroyed (47) 235 Value Destroyed (1342) 1342 Prototype IDs (2) 40 Alien Tech Used (0) 0 Bonus (500) 500 TOTAL SCORE: 4617 Bonus ------- Entered DSFs 500 Cogmind --------- Core Integrity 0/700 Matter 70/300 Energy 99/100 System Corruption 0% Temperature Cool (0) Movement Core (50) Location -7/DSF Parts ------- > --- POWER (1) -------- (None) > --- PROPULSION (3) --- (None) > --- UTILITY (6) ------ (None) > --- WEAPON (3) ------- (None) > --- INVENTORY (5) ---- Deuterium Engine Core Analyzer Kinecellerator Heavy Armor Plating Peak State ------------ > --- POWER ------------ Improved Deuterium Engine > --- PROPULSION ------- Light Treads Compact Wheel > --- UTILITY ---------- Large Storage Unit Improved Sensor Array Targeting Computer Core Analyzer Actuator Array Hardened Medium Armor Plating > --- WEAPON ----------- Plasma Cannon Plasma Cannon Axe > --- INVENTORY -------- Deuterium Engine Gravmag System Large Battery Core Analyzer Core Analyzer Recoil Stabilizer Kinecellerator Actuator Array Improved Weapon Shielding Heavy Armor Plating Field Laser Minigun High-powered Shotgun Subdweller Shrapnel Launcher [Rating: 36] Favorites ----------- Power Light Nuclear Core Engine Cooled Ion Engine Power Core Light Nuclear Core Propulsion Light Treads Treads Light Treads Leg Aluminum Leg Wheel Compact Wheel Hover Unit Aerolev Unit Utility Large Storage Unit Device Seismic Detector Storage Large Storage Unit Processor Targeting Computer Protection Hardened Medium Armor Plating Weapon High-powered Shotgun Energy Gun Particle Gun Energy Cannon Plasma Cannon Ballistic Gun High-powered Shotgun Launcher Subdweller Shrapnel Launcher Slashing Weapon Axe Build | -11 -10 -10 -8 -7 -7 ------- Run | Yrd Mat Sub Mat Fac DSF Slots Evolved 6 | . . . 4 2 . Power . | . . . . . . Propulsion 1 | . . . 1 . . Utility 4 | . . . 2 2 . Weapon 1 | . . . 1 . . Parts Attached 52 | 7 8 6 22 3 6 Power 7 | 1 1 1 3 1 . Engine 5 | 1 . 1 2 1 . Core 2 | . 1 . 1 . . Reactor . | . . . . . . Propulsion 15 | 2 3 3 6 . 1 Treads 6 | . . 2 4 . . Leg 2 | 2 . . . . . Wheel 5 | . 3 1 1 . . Hover 2 | . . . 1 . 1 Flight . | . . . . . . Utility 12 | 2 1 1 5 2 1 Device 5 | 1 . . 1 2 1 Storage 2 | 1 1 . . . . Processor 4 | . . 1 3 . . Hackware . | . . . . . . Protection 1 | . . . 1 . . Artifact . | . . . . . . Weapon 18 | 2 3 1 8 . 4 Energy Gun 4 | 2 1 . 1 . . Energy Cannon 2 | . . . . . 2 Ballistic Gun 10 | . 2 1 6 . 1 Ballistic Cannon . | . . . . . . Launcher 1 | . . . . . 1 Special Weapon . | . . . . . . Impact Weapon . | . . . . . . Slashing Weapon 1 | . . . 1 . . Piercing Weapon . | . . . . . . Special Melee Weapon . | . . . . . . Unidentified Prototypes 2 | . . . 2 . . Parts Lost 32 | . 2 6 13 . 11 Power 3 | . . 1 1 . 1 Propulsion 12 | . 1 3 5 . 3 Utility 8 | . . 1 3 . 4 Weapon 9 | . 1 1 4 . 3 Highest Loss Streak 8 | . 1 2 8 . 5 To Critical Strikes 1 | . . . 1 . . Average Backups 12 | 4 11 12 13 12 12 Power . | . . . . . 1 Propulsion 1 | 2 3 1 . . . Utility 6 | . 4 6 6 7 6 Weapon 3 | . 2 3 5 4 3 Tool/Special . | . . . . . . Unused Backups 24 | . 5 . 10 . 9 Power 2 | . 1 . 1 . . Propulsion 2 | . 2 . . . . Utility 14 | . 2 . 5 . 7 Weapon 6 | . . . 4 . 2 Tool/Special . | . . . . . . Average Slot Usage (%) 92 | . 97 95 95 91 54 Engine 4 | . 2 3 6 7 2 Core 6 | . 9 10 2 . . Treads 7 | . . 5 15 7 2 Leg 2 | . 11 . . . . Wheel 12 | . 15 19 8 7 1 Device 9 | . 14 9 4 14 9 Storage 11 | . 14 14 9 7 6 Processor 9 | . . 4 19 15 12 Protection 1 | . . . 1 7 1 Energy Gun 7 | . 13 14 2 . . Ballistic Gun 16 | . 13 13 23 15 6 Peak Build Rating 36 | 7 11 12 27 34 36 Average Rating 16 | 5 9 10 23 32 22 On Entrance 14 | . 7 11 9 27 34 Naked Turns 34 | . . . . . 34 Heaviest Build 62 | 15 30 31 46 53 62 Greatest Support 40 | 20 20 40 40 16 20 Greatest Overweight (x) 16 | 3 2 1 2 3 16 Average Overweight (x) 1 | . . . 1 3 3 Largest Inventory Capacity 15 | 8 15 15 15 15 15 Average Capacity 14 | 7 12 15 15 15 13 Most Carried 15 | 6 15 14 15 15 15 Average Carried 12 | 4 11 12 13 13 13 Final Capacity 15 | 8 15 15 15 15 5 Final Carried 15 | 6 14 14 14 15 5 Class Distribution -------------------- 48% | Mutant 24% | Scavenger-Gunner 22% | Scavenger-Mutant 4% | Gunner Dominant Class ---------------- Mutant | -10/Materials Scavenger-Mutant | -10/Subcaves Scavenger-Gunner | -8/Materials Mutant | -7/Factory Mutant | -7/DSF Resources | -11 -10 -10 -8 -7 -7 ----------- Run | Yrd Mat Sub Mat Fac DSF Matter Collected 1266 | 270 171 238 570 . 17 Remotely . | . . . . . . Salvage Created 1489 | 143 422 151 740 . 33 Parts 85 | 3 32 6 43 . 1 Haulers Intercepted 1 | . 1 . . . . Recyclers Shooed 1 | . 1 . . . . Parts Field Recycled . | . . . . . . Retrieved Matter . | . . . . . . Parts Self-Destructed 5 | . . 5 . . . Prevented . | . . . . . . Kills | -11 -10 -10 -8 -7 -7 ------- Run | Yrd Mat Sub Mat Fac DSF Combat Hostiles Destroyed 38 | . 9 4 23 . 2 Guns 38 | . 9 4 23 . 2 Classes Destroyed 12 | 2 5 1 3 . 1 Worker 1 | . 1 . . . . Tunneler 2 | 2 . . . . . Hauler 1 | . 1 . . . . Recycler 4 | 1 2 . 1 . . Watcher 1 | . 1 . . . . Swarmer 13 | . 6 . 7 . . Grunt 12 | . 3 2 7 . . Brawler 1 | . . . 1 . . Sentry 7 | . . . 7 . . Specialist 2 | . . . . . 2 Hunter 1 | . . . 1 . . Subdweller 2 | . . 2 . . . Best Kill Streak 4 | 2 3 1 4 . 2 Combat Bots Only 4 | . 2 1 4 . 2 Max Kills in Single Turn 2 | 1 1 1 2 . 1 Gunslinging 1 | . . . 1 . . Exploded . | . . . . . . Melee . | . . . . . . Uniques/NPCs Destroyed . | . . . . . . Combat | -11 -10 -10 -8 -7 -7 -------- Run | Yrd Mat Sub Mat Fac DSF Hostile Shots Fired 361 | . 60 43 163 . 95 Missed 94 | . 13 8 43 . 30 Hits 267 | . 47 35 120 . 65 Melee 5 | . . . 5 . . Projectile 262 | . 47 35 115 . 65 Critical Strikes 5 | . 1 . 2 . 2 Damage Taken 4438 | . 431 705 1766 . 1536 Core 1193 | . 86 146 260 . 701 Absorbed by Shields . | . . . . . . Regen/Repaired (Parts) 103 | . 88 . 15 . . Core Remaining (%) 53 | 100 . 7 52 . . Volleys Fired 146 | 11 50 23 55 . 7 Largest 3 | 2 2 2 3 . 2 Hottest 160 | 90 85 85 120 . 160 Shots Fired 308 | 14 93 45 142 . 14 Gun 297 | 14 93 45 142 . 3 Cannon 8 | . . . . . 8 Launcher 3 | . . . . . 3 Special . | . . . . . . Kinetic 212 | . 50 22 134 . 6 Thermal 93 | 11 43 23 8 . 8 Explosive . | . . . . . . Electromagnetic 3 | 3 . . . . . Robot Hit Streak 24 | 6 5 8 24 . 7 Robot Miss Streak 5 | 1 3 2 5 . 1 Penetration Max . | . . . . . . Secondary Targets 4 | . 1 . 3 . . Max Gunslinging Chain 1 | . 1 . 1 . . Shots Hit Robots 219 | 12 51 33 112 . 11 Core Hits 90 | 4 25 9 48 . 4 Critical Kills . | . . . . . . Critical Parts Destroyed 3 | . 1 . 2 . . Critical Strikes 9 | 1 3 2 3 . . Burn 6 | 1 2 2 1 . . Destroy 3 | . 1 . 2 . . Melee Attacks 1 | . . . 1 . . Impact . | . . . . . . Slashing 1 | . . . 1 . . Piercing . | . . . . . . Sneak Attacks . | . . . . . . Combat Hostiles . | . . . . . . Follow-up Attacks . | . . . . . . Damage Inflicted 3918 | 154 544 430 2349 . 441 Guns 3266 | 154 544 430 2087 . 51 Cannons 152 | . . . . . 152 Explosions 462 | . . . 224 . 238 Melee 38 | . . . 38 . . Ramming . | . . . . . . Kinetic 2705 | . 252 169 1995 . 289 Thermal 908 | 111 292 261 92 . 152 Explosive 224 | . . . 224 . . Electromagnetic 43 | 43 . . . . . Impact . | . . . . . . Slashing 38 | . . . 38 . . Piercing . | . . . . . . Highest Corruption 10 | . . . 10 . . Average Corruption 9 | . . . 9 . . Corruption Purged . | . . . . . . Corruption Blocked . | . . . . . . Effects 7 | . . . 7 . . Message Errors 1 | . . . 1 . . Matter Fused 3 | . . . 3 . . Heat Flow Errors 2 | . . . 2 . . Alerts 1 | . . . 1 . . Overload Shots . | . . . . . . Overflow Damage . | . . . . . . Projectiles . | . . . . . . Explosions . | . . . . . . Melee . | . . . . . . Knockbacks . | . . . . . . Impact . | . . . . . . Kinetic . | . . . . . . Secondary . | . . . . . . Self-Inflicted Damage 111 | . . . 111 . . Shots 1 | . . . 1 . . Rammed . | . . . . . . Targets Rammed 1 | . 1 . . . . Kicked 1 | . 1 . . . . Crushed . | . . . . . . Highest Temperature 250 | 90 195 31 250 . 33 Average Temperature 50 | 29 55 9 54 . 15 Received Heat Transfer 858 | . 111 135 549 . 63 Effects 2 | . . . 2 . . Interference 2 | . . . 2 . . Siege Activations . | . . . . . . Martial Activations . | . . . . . . Shielding Activations . | . . . . . . Robots Disrupted . | . . . . . . Combat Hostiles . | . . . . . . Robots Corrupted . | . . . . . . Combat Hostiles . | . . . . . . Parts Fried . | . . . . . . Impact Corruptions . | . . . . . . Robots Melted . | . . . . . . Combat Hostiles . | . . . . . . Parts Melted 1 | . 1 . . . . Heat Transferred 2779 | 407 999 777 296 . 300 Parts Sabotaged . | . . . . . . Parts Stolen . | . . . . . . Parts Stripped . | . . . . . . Power Chain Reactions . | . . . . . . Alert | -11 -10 -10 -8 -7 -7 ------- Run | Yrd Mat Sub Mat Fac DSF Maximum Alert Level 1 | . . . 1 . . Low Security (%) 93 | 100 100 . 86 100 100 Level 1 6 | . . . 13 . . Level 2 . | . . . . . . Level 3 . | . . . . . . Level 4 . | . . . . . . Level 5 . | . . . . . . High Security . | . . . . . . Max Security . | . . . . . . Peak Influence 230 | 5 84 . 230 102 63 Initial 102 | . . . . 102 4 Average 45 | 1 22 . 67 55 24 Influence Increases 1240 | 15 289 50 772 5 109 Destroy 0b10 Robot/C 720 | . 180 40 460 . 40 Destroy 0b10 Robot/NC 45 | 15 25 . 5 . . Destroy Leader 184 | . 44 10 120 . 10 Successful Hack 23 | . 10 . 8 5 . Disable Machine 45 | . . . 45 . . Destroy Structure 73 | . . . 44 . 29 Lose Combat Pursuer 150 | . 30 . 90 . 30 Influence Decreases 1225 | 15 264 75 547 223 101 Entered New Map 139 | . . 13 . 123 3 Time Decay 845 | 15 254 52 424 100 . Lost Part 241 | . 10 10 123 . 98 Squads Dispatched 6 | . 2 . 1 1 2 Investigation 3 | . 2 . . 1 . Extermination . | . . . . . . Reinforcement 3 | . . . 1 . 2 Assault . | . . . . . . Garrison . | . . . . . . Intercept . | . . . . . . Searches Triggered . | . . . . . . Construction Impeded . | . . . . . . Haulers Reinforced . | . . . . . . Active Scanning Responses . | . . . . . . Cargo Convoy Interrupts . | . . . . . . Stealth | -11 -10 -10 -8 -7 -7 --------- Run | Yrd Mat Sub Mat Fac DSF Distress Signals 7 | . 3 . 4 . . Communications Jammed . | . . . . . . Distress Signals . | . . . . . . Times Spotted 74 | . 18 5 37 . 14 Peak Tracking Total 9 | . 4 2 6 . 9 Tactical Retreats 10 | . 2 . 6 . 2 Traps | -11 -10 -10 -8 -7 -7 ------- Run | Yrd Mat Sub Mat Fac DSF Traps Triggered 6 | . 2 3 . . 1 Indirectly . | . . . . . . Trap Hack Attempts . | . . . . . . Triggered . | . . . . . . Disarmed . | . . . . . . Reprogrammed . | . . . . . . Reused . | . . . . . . Traps Extracted . | . . . . . . Installed . | . . . . . . Triggered . | . . . . . . Machines | -11 -10 -10 -8 -7 -7 ---------- Run | Yrd Mat Sub Mat Fac DSF Machines Disabled 3 | . . . 3 . . Max in Single Turn 2 | . . . 2 . . Machines Repaired . | . . . . . . Machines Dismantled . | . . . . . . Machines Sabotaged . | . . . . . . Overloaded Fab Kills . | . . . . . . Hacking | -11 -10 -10 -8 -7 -7 --------- Run | Yrd Mat Sub Mat Fac DSF Machines Accessed 11 | . 5 1 3 2 . Terminals 7 | . 4 . 2 1 . Fabricators . | . . . . . . Repair Stations 2 | . 1 . 1 . . Recycling Units 1 | . . . . 1 . Scanalyzers . | . . . . . . Garrison Access . | . . . . . . Total Hacks 30 | . 15 3 8 4 . Successful 19 | . 10 3 3 3 . Failed 11 | . 5 . 5 1 . Catastrophic 1 | . . . . 1 . Database Lockouts . | . . . . . . Manual . | . . . . . . Terminals 12 | . 5 . 6 1 . Fabricators . | . . . . . . Repair Stations 12 | . 10 . 2 . . Recycling Units 3 | . . . . 3 . Scanalyzers . | . . . . . . Garrison Access . | . . . . . . Terminal Hacks 9 | . 4 3 1 1 . Record 3 | . . 3 . . . Open DSF 1 | . . . . 1 . Emergency Access Points 1 | . 1 . . . . Terminal Index 1 | . 1 . . . . Zone Layout 3 | . 2 . 1 . . Fabricator Hacks . | . . . . . . Repair Station Hacks 8 | . 6 . 2 . . Scan Component 4 | . 3 . 1 . . Repair 4 | . 3 . 1 . . Recycling Unit Hacks 2 | . . . . 2 . Report Inventory 1 | . . . . 1 . Retrieve Components 1 | . . . . 1 . Scanalyzer . | . . . . . . Garrison Access Hacks . | . . . . . . Unauthorized Hacks . | . . . . . . Terminals . | . . . . . . Fabricators . | . . . . . . Repair Stations . | . . . . . . Recycling Units . | . . . . . . Scanalyzers . | . . . . . . Garrison Access . | . . . . . . Data Cores Recovered . | . . . . . . Used . | . . . . . . Hacking Detections 5 | . 1 . 3 1 . Full Trace Events 2 | . 1 . . 1 . Feedback Events . | . . . . . . Feedback Blocked . | . . . . . . Robot Schematics Acquired . | . . . . . . Robots Built . | . . . . . . Authchips . | . . . . . . Time . | . . . . . . Total Robot Build Rating . | . . . . . . Part Schematics Acquired . | . . . . . . Parts Built . | . . . . . . Authchips . | . . . . . . Time . | . . . . . . Total Part Build Rating . | . . . . . . Parts Repaired 4 | . 3 . 1 . . Time 128 | . 102 . 26 . . Parts Recycled . | . . . . . . Recycled Matter . | . . . . . . Retrieved Matter . | . . . . . . Retrieved Components 2 | . . . . 2 . Parts Scanalyzed . | . . . . . . Part Schematics Acquired . | . . . . . . Parts Damaged . | . . . . . . Bothacking | -11 -10 -10 -8 -7 -7 ------------ Run | Yrd Mat Sub Mat Fac DSF Used RIF Installer . | . . . . . . Robots Hacked . | . . . . . . Non-combat . | . . . . . . Combat . | . . . . . . Robot Hacks Applied . | . . . . . . Relay Couplers Released . | . . . . . . Fabnet Peak Effective % . | . . . . . . Robots Rewired . | . . . . . . Allies Hacked . | . . . . . . Hacks Repelled . | . . . . . . Allies | -11 -10 -10 -8 -7 -7 -------- Run | Yrd Mat Sub Mat Fac DSF Total Allies . | . . . . . . Largest Group . | . . . . . . Highest-Rated Group . | . . . . . . Highest-Rated Ally . | . . . . . . Total Orders . | . . . . . . Ally Attacks . | . . . . . . Total Damage . | . . . . . . Kills . | . . . . . . Allies Corrupted . | . . . . . . Allies Melted . | . . . . . . Intel | -11 -10 -10 -8 -7 -7 ------- Run | Yrd Mat Sub Mat Fac DSF Active Infowar (turns) 2093 | 27 944 808 . 204 110 Sensors 314 | . . . . 204 110 Seismic 1779 | 27 944 808 . . . Robot Analysis Total . | . . . . . . Derelict Logs Recovered 1 | . . 1 . . . Drone Launches . | . . . . . . Drone Recoveries . | . . . . . . Exploration | -11 -10 -10 -8 -7 -7 ------------- Run | Yrd Mat Sub Mat Fac DSF Turns Passed 4143 | 114 944 1158 1392 205 330 Spaces Moved 2575 | 51 618 863 772 138 133 Core 107 | 9 . . . . 98 Treads 350 | . . 151 184 . 15 Legs 302 | 42 260 . . . . Wheels 1816 | . 358 712 588 138 20 Hover . | . . . . . . Flight . | . . . . . . Fastest Speed 50 | 50 95 95 130 145 50 Average Speed 130 | 122 105 123 141 145 224 Slowest Speed 850 | 200 120 240 320 145 850 Overloaded Moves . | . . . . . . Propulsion Burnouts . | . . . . . . Robots Hopped . | . . . . . . Potential Cave-ins . | . . . . . . Cave-ins Triggered . | . . . . . . Exploration Rate (%) 46 | 5 87 44 64 5 71 Regions Visited 5 Branch Regions 1 Pre-discovered Areas . | . . . . . . Known Exits Taken 1 | . . . . 1 . Unknown Exits Taken 4 | 1 1 1 1 . . Scrap Searched 2 | . . 2 . . . Spaces Dug . | . . . . . . Terrain Destroyed 72 | . . . 40 . 32 Melee . | . . . . . . Projectile 3 | . . . 3 . . AOE 69 | . . . 37 . 32 Terrain Rammed . | . . . . . . Walls Destroyed . | . . . . . . Machines Disabled . | . . . . . . Actions | -11 -10 -10 -8 -7 -7 --------- Run | Yrd Mat Sub Mat Fac DSF Total 3081 | 85 828 906 968 142 152 Wait 204 | 10 113 10 71 . . Move 2570 | 50 617 862 771 137 133 Hop . | . . . . . . Pick Up 64 | 7 21 5 27 2 2 Fast Attach 18 | 6 6 . 5 . 1 Attach 27 | 1 3 5 15 2 1 Detach 2 | . . . 2 . . Swap 15 | . 4 1 4 1 5 Drop 33 | . 13 . 17 . 3 Fire 146 | 11 50 23 55 . 7 Melee 1 | . . . 1 . . Ram . | . . . . . . Kick 1 | . 1 . . . . Crush . | . . . . . . Escape Stasis . | . . . . . . Rewire . | . . . . . . Trap . | . . . . . . Miscellaneous . | . . . . . . Route ------- -11/Scrapyard -10/Materials (discovered 4 exits: [*Mat x2] / [*Min] / *Sub) -10/Subcaves -8/Materials -7/Factory -7/DSF History --------- Turn | Location | Event 33 | -11/Scrapyard | Discovered new exit (range 15) 115 | -11/Scrapyard | Entered Materials 337 | -10/Materials | Build established: Mutant 456 | -10/Materials | Discovered new exit (range 14) 651 | -10/Materials | Repaired Lgt. Nuclear Core 678 | -10/Materials | Discovered new exit (range 15) 759 | -10/Materials | Discovered new exit (range 15) 801 | -10/Materials | Discovered new exit (range 9) 995 | -10/Materials | Repaired Lgt. Nuclear Core 1022 | -10/Materials | Repaired Wheel 1059 | -10/Materials | Entered Subcaves 1060 | -10/Subcaves | Approached by a straggling Scientist 1117 | -10/Subcaves | Core integrity fell below 50% 1333 | -10/Subcaves | Build established: Scavenger-Mutant 1425 | -10/Subcaves | Visited Clippyterm 1428 | -10/Subcaves | Learned Factory trap positions 1631 | -10/Subcaves | Learned Materials trap positions 1830 | -10/Subcaves | A swath of the cavern ceiling suddenly collapsed 1900 | -10/Subcaves | Shifting Twisted Machinery released Sub. Shrapnel Launcher 1900 | -10/Subcaves | Shifting Twisted Machinery released Sub. Beam Cannon 1935 | -10/Subcaves | Core integrity fell below 20% 2130 | -10/Subcaves | Discovered new exit (range 7) 2153 | -10/Subcaves | Build established: Mutant 2217 | -10/Subcaves | Entered Materials 2217 | -8/Materials | Evolved 4 slots: Propulsion x1, Utility x2, Weapon x1 2218 | -8/Materials | Loaded intel: 21 trap records 2513 | -8/Materials | Build established: Scavenger-Gunner 2651 | -8/Materials | Repaired Com. Wheel 3353 | -8/Materials | System corruption reached 10% 3385 | -8/Materials | Lost 8 parts (1p2n2u3w) 3550 | -8/Materials | Discovered new exit (range 10) 3609 | -8/Materials | Entered Factory 3609 | -7/Factory | Evolved 2 slots: Utility x2 3610 | -7/Factory | Loaded intel: 113 trap records 3794 | -7/Factory | Build established: Mutant 3814 | -7/Factory | Identified exit to DSF 3814 | -7/Factory | Entered DSF 3847 | -7/DSF | Additional patrols routed to DSF 3964 | -7/DSF | Lost 5 parts (1p1n2u1w) 4100 | -7/DSF | Core integrity fell below 50% 4109 | -7/DSF | Released all parts (3) 4113 | -7/DSF | Core integrity fell below 20% 4143 | -7/DSF | Lost 4 parts (1n1u2w) 4144 | -7/DSF | Destroyed by H-61 Shepherd with Heavy Assault Cannon Last Messages --------------- 04102_ Penetrated by Slug. 04107_ Knocked back. 04108_ Penetrated by Slug. 04109_ Released Core Analyzer. 04109_ Released Lrg. Storage Unit. 04109_ Released Actuator Array. 04111_ Penetrated by Slug. 04111_ Acquired Gravmag System. 04112_ Gravmag System destroyed. 04113_ Acquired 4 matter. 04114_ Acquired 3 matter. 04126_ Acquired 2 matter. 04135_ Acquired 8 matter. 04139_ C-30 ARC bursts open, deploying its payload. 04139_ S-27 Virus unfolds itself. 04140_ C-30 ARC bursts open, deploying its payload. 04140_ L-41 Fighter unfolds itself. 04140_ G-47 Trooper unfolds itself. Map ----- +----------------------------------------------------+ | | | | | ??????????????????????????????????????????? | | ??????????????????????????????????????????? | | ??????????????????????????????????????????? | | ??????????????????????????????????????????? | | ??????????????????????????????????????????? | | ??????????????????????????????????????????? | | ??????????????????????????????????????????? | | ??????????????????????????????????????????? | | ??????????????????????????????????????????? | | ??????????????????????????????????????????? | | ??????????????????????????????????????????? | | ????????" ????????????????????????????????? | | ????????# ???????????????????????????????? | | ???????## ???????????????????????????????? | | ???????#! ???????????????????????????????? | | ????????! ???????????????????????????????? | | ???????## ###????????????????????????????? | | ???????#!"%!!#????????????????????????????? | | ?????###!%"!!#????????????????????????????? | | ?????# "!" !!#????????????????????????????? | | ?????# "########???????#???########### | | ?????# !! "***#!!!#?# ###]]?# ## # | | ????## !! l ***#!!!##a ##]]]# !##! # | | ????# @ [[!%] # | | ?????# % H !! ] % " | | ????## a ! " | | ????# [[[#!!!##x ##!!!#[[[## //# | | ????### ;[[[#!!!###a ###!!?#[[[## //# | | ??????## ########### ####??###### ### | | ??????#;] ##??????!! !!#??????#!! !#? | | ??????#;] "#???????! !!#??????#!! !#? | | ??????#;] "#???????! !?#??????#!! !#? | | ??????##" "###?????### ###??????### ##? | | ???????#]] ]]#??????# !!#??????#!! #? | | ???????# ]]#??????# !!#??????#!! #? | | ???????## ########## !!########## ##? | | ??????### ###[[#[[[##" #?# #!!### ### | | ????###"" ##[[#[[[##" ### #!!## ""# | | ????""""" % % """ | | ????"##"" %[ ""# | | ??????#"""""## #[[[# !!!]]# #!!##"""""# | | ??????#"""""######### %!!!]]#########"""""# | | ??????####"##???????###""####???????##"#### | | ?????????#"#??????????####???????????#"#??? | | ?????????""#?????????????????????????#""??? | | ?????????##???????????????????????????????? | | ??????????????????????????????????????????? | | ??????????????????????????????????????????? | +----------------------------------------------------+ Best States ------------- Heat Dissipation 45 Energy Generation 16 Energy Capacity 290 Matter Stores 300 Matter Capacity 300 Sight Range 16 Robot Scan Range 15 Terrain Scan Density 10 Armor Coverage 225 Evasion (%) 55 Targeting Accuracy 18 Core Analysis 6 Recoil Reduction 5 Item Schematics ----------------- None Robot Schematics ------------------ None Fabricated ------------ Nothing Repaired ---------- Lgt. Nuclear Core | 36% | -10/Materials Lgt. Nuclear Core | 52% | -10/Materials Wheel | 20% | -10/Materials Com. Wheel | 50% | -8/Materials Alien Tech Used ----------------- None Achievements -------------- None Challenges ------------ None Game ------ Seed MiningGhostJammer Manual? 0 Play Time 00:50:38 Cumulative 14.1 hours Start 2025.05.08 @ 13:51:48 End 2025.05.08 @ 14:56:32 Sessions 1 Manual Loads 0 Difficulty Rogue Special Mode None Game No. 17 Rogue 17 Adventurer 0 Explorer 0 Win Type - Total 0 Types 0/0/0/0/0/0/0/0/0/0 Lore% 4 Gallery% 20 Achievement% 15 Wizard Run 0 Options --------- Layout 1 ASCII 0 Keyboard 0 Movement Mouse Keybinds 0 Fullscreen 2 Font 32/Terminus Map View 50x35 Zoom Use 0% Tactical HUD 1 Map Filters NONE Filters NONE Steam 1 RUN: a5616698-5e62-464a-b759-fc5e17c3e312